bitfinex/quotes_ETHUSD_20251031
["timestamp","ask_amount","ask_price","bid_price","bid_amount"]
[1761930195214,3.25323547,3826.0,3825.9,0.43346307]
[1761930195413,10.14084847,3826.0,3825.9,0.43346307]
[1761930195924,9.78057647,3826.0,3825.9,0.43346307]
[1761930196147,2.31874307,3826.0,3825.9,3.04722715]
[1761930196814,2.31874307,3826.0,3825.9,0.43346307]
[1761930197199,8.19659107,3826.0,3825.9,0.43346307]
[1761930197512,6.32279107,3826.0,3825.9,0.43346307]
[1761930197720,1.83314307,3826.0,3825.9,3.06539733]
[1761930197909,2.31764307,3826.0,3825.9,3.81346307]
[1761930198226,9.21700579,3826.0,3825.9,0.43346307]
[1761930199026,17.30374379,3826.0,3825.9,0.43346307]
[1761930199734,16.46065279,3826.0,3825.9,0.43346307]
[1761930200060,3.05450479,3826.0,3825.9,0.43346307]
[1761930200252,20.18194798,3826.0,3825.9,0.43346307]
[1761930200440,20.14927679,3826.0,3825.9,0.43346307]
[1761930201036,21.01196979,3826.0,3825.9,0.43346307]
[1761930201236,20.58702779,3826.0,3825.9,0.43346307]
[1761930201660,19.50588679,3826.0,3825.9,0.43346307]
[1761930202065,20.96054579,3826.0,3825.9,0.43346307]
[1761930202570,16.16972479,3826.0,3825.9,0.43346307]
[1761930203264,21.12836679,3826.0,3825.9,0.43346307]
[1761930203625,20.63704579,3826.0,3825.9,0.43346307]
[1761930204222,28.04541179,3826.0,3825.9,0.43346307]
[1761930204426,18.31786079,3826.0,3825.9,0.43346307]
[1761930205176,24.40676064,3826.0,3825.9,0.43346307]
[1761930205344,39.64768364,3826.0,3825.9,0.43346307]
[1761930205657,30.0,3825.8,3825.5,0.001]
[1761930205857,29.379321,3825.6,3825.5,0.001]
[1761930206038,29.026835,3825.6,3825.5,0.001]
[1761930206235,30.9156,3825.6,3825.5,0.001]
[1761930207468,19.25495559,3825.6,3825.5,0.001]
[1761930208347,26.86399759,3825.6,3825.5,0.001]
[1761930208653,28.59090554,3825.6,3825.5,0.001]
[1761930208978,29.37692178,3825.6,3825.5,0.001]
[1761930209391,33.26684678,3825.6,3825.5,0.001]
[1761930209595,22.28531078,3825.6,3825.5,0.001]
[1761930209752,19.77848878,3825.6,3825.5,0.001]
[1761930210456,1.19612183,3825.6,3825.5,0.001]
[1761930211088,1.19612183,3825.6,3825.5,3.07923738]
[1761930211275,0.41010559,3825.6,3825.5,3.07923738]
[1761930211452,0.54050559,3825.6,3825.5,3.59611439]
[1761930211780,3.89793059,3825.6,3825.5,0.001]
[1761930211980,3.36400559,3825.6,3825.5,0.001]
[1761930212288,0.54050559,3825.6,3825.5,0.001]
[1761930212496,0.54050559,3825.6,3825.5,3.07713738]
[1761930212804,0.54050559,3825.6,3825.5,0.001]
[1761930212999,0.54050559,3825.6,3825.5,0.4652]
[1761930213495,0.54050559,3825.6,3825.5,3.15753738]
[1761930213666,0.54050559,3825.6,3825.5,4.08950847]
[1761930213930,0.41010559,3825.6,3825.5,4.10768548]
[1761930214100,0.1304,3825.9,3825.8,2.6138324]
[1761930214560,0.1304,3825.9,3825.8,6.5394324]
[1761930214736,0.54038609,3826.1,3826.0,2.61369576]
[1761930215052,0.54038609,3826.1,3826.0,2.61499576]
[1761930215218,0.54038609,3826.1,3826.0,3.11369576]
[1761930215547,0.40998609,3826.1,3826.0,6.49369576]
[1761930215716,0.40998609,3826.1,3826.0,7.65075039]
[1761930215915,0.1324,3826.9,3826.8,2.61314936]
[1761930216231,0.1324,3826.9,3826.8,2.76464936]
[1761930216430,0.002,3826.9,3826.8,6.64114936]
[1761930216630,0.002,3826.9,3826.8,7.59824328]
[1761930216931,0.002,3826.9,3826.8,4.34864328]
[1761930217113,0.002,3826.9,3826.8,4.36679809]
[1761930217458,0.002,3826.9,3826.8,4.34864328]
[1761930217661,0.002,3826.9,3826.8,4.23639809]
[1761930217845,0.002,3826.9,3826.8,4.36679809]
[1761930218057,1e-08,3827.0,3826.9,2.61778108]
[1761930218234,1e-08,3827.0,3826.9,4.02826245]
[1761930218935,1e-08,3827.0,3826.9,4.15866245]
[1761930219969,1e-08,3827.0,3826.9,4.17681554]
[1761930220182,1e-08,3827.4,3827.3,2.61280798]
[1761930220475,0.1865,3829.1,3827.3,2.61280798]
[1761930220476,0.002,3828.3,3828.2,2.61219372]
[1761930220699,0.002,3828.3,3828.2,3.07639372]
[1761930221145,0.002,3828.3,3828.2,3.57509372]
[1761930221374,0.002,3828.3,3828.2,4.22876235]
[1761930221747,0.002,3828.3,3828.2,4.21063144]
[1761930222270,0.002,3828.3,3828.2,4.22876235]
[1761930223083,0.002,3828.3,3828.2,4.21063144]
[1761930223467,0.002,3828.3,3828.2,4.22876235]
[1761930224185,0.002,3828.3,3828.2,7.59063144]
[1761930226282,0.002,3828.3,3828.2,7.09193144]
[1761930226603,0.002,3828.3,3828.2,5.99219372]
[1761930226806,0.4605,3828.3,3828.2,3.38]
[1761930227008,0.9176,3828.3,3828.2,2.61219372]
[1761930227211,0.002,3828.3,3828.2,2.61219372]
[1761930227361,0.002,3828.3,3827.8,3.38]
[1761930227561,0.002,3828.3,3827.8,3.76787]
[1761930227862,0.002,3828.3,3828.2,2.61219372]
[1761930228195,0.002,3828.3,3827.8,3.76787]
[1761930228397,0.002,3828.3,3828.2,2.61219372]
[1761930228976,0.4605,3828.3,3827.8,3.76787]
[1761930229588,0.4605,3828.3,3828.2,2.61219372]
[1761930230098,0.002,3828.3,3828.2,2.61219372]
[1761930231496,7.863056,3828.8,3828.7,3.364]
[1761930231700,4.8397436,3828.8,3828.7,3.364]
[1761930231886,4.4825736,3828.8,3828.7,3.364]
[1761930232086,4.168718,3828.8,3828.7,3.364]
[1761930232484,3.79982,3828.8,3828.7,3.364]
[1761930232699,7.16588319,3830.1,3828.8,2.61178437]
[1761930232700,0.5013,3829.7,3828.8,2.61178437]
[1761930232902,0.1304,3829.2,3829.0,2.61164794]
[1761930233109,0.1304,3829.4,3828.8,0.1304]
[1761930233272,0.90094475,3829.5,3828.9,0.01811898]
[1761930233478,0.4913,3829.0,3828.6,3.364]
[1761930233776,0.6719,3828.7,3828.6,3.364]
[1761930234027,0.6719,3828.7,3828.6,5.9759208]
[1761930234709,0.6719,3828.7,3828.6,3.364]
[1761930235077,1.1632,3828.7,3828.6,3.364]
[1761930235629,0.40966841,3829.2,3828.6,5.9759208]
[1761930235794,2.262153,3829.0,3828.6,5.9759208]
[1761930235988,0.1304,3828.8,3828.7,2.61185258]
[1761930236535,0.6719,3828.7,3828.6,5.9759208]
[1761930236881,0.4783,3828.7,3828.6,5.9759208]
[1761930237077,0.1304,3828.8,3828.7,2.61185258]
[1761930237283,0.9696,3828.7,3828.0,0.1304]
[1761930237615,0.9696,3828.7,3828.1,0.01813016]
[1761930237781,0.9696,3828.7,3828.5,2.61198622]
[1761930238427,0.32,3828.6,3828.5,2.61198622]
[1761930239000,0.1304,3828.5,3828.4,2.6301689]
[1761930239517,0.002,3829.1,3828.4,2.6301689]
[1761930239518,0.002,3829.1,3829.0,2.61164794]
[1761930239686,0.6237,3829.1,3829.0,3.364]
[1761930239890,1.102,3829.1,3829.0,3.364]
[1761930240394,1.13464474,3829.1,3829.0,3.0408]
[1761930240595,18.71789805,3829.1,3829.0,3.0408]
[1761930240917,18.68525331,3829.1,3829.0,3.0408]
[1761930241412,18.57035731,3829.1,3829.0,3.0408]
[1761930241611,8.63281331,3829.1,3829.0,3.0408]
[1761930242385,5.58574131,3829.1,3829.0,3.0408]
[1761930242712,3.285877,3829.1,3829.0,3.0408]
[1761930242920,0.4803,3829.1,3829.0,3.0408]
[1761930243090,5.470091,3829.1,3829.0,3.0408]
[1761930243481,5.981551,3829.1,3829.0,3.0408]
[1761930243690,2.495151,3829.1,3829.0,3.0408]
[1761930243945,5.618243,3829.1,3829.0,3.0408]
[1761930244119,3.387549,3829.1,3829.0,3.0408]
[1761930244414,0.1324,3829.1,3829.0,6.13354794]
[1761930244578,0.1324,3829.1,3829.0,7.00884115]
[1761930244781,0.1324,3829.1,3829.0,6.52774115]
[1761930244982,0.1324,3829.1,3829.0,3.91609321]
[1761930245231,0.6107,3829.1,3829.0,3.0408]
[1761930245439,13.623265,3829.1,3829.0,3.0408]
[1761930246431,13.054355,3829.1,3829.0,3.0408]
[1761930246606,13.054355,3829.1,3828.2,3.0408]
[1761930246607,3.194762,3829.1,3828.2,3.0408]
[1761930246805,3.194762,3829.1,3827.1,0.5063]
[1761930246806,0.67,3828.3,3827.1,0.5063]
[1761930246997,2.04287,3828.2,3827.8,2.61241717]
[1761930247194,2.04287,3828.2,3827.7,2.61246829]
[1761930247422,2.04287,3828.2,3827.2,0.1847]
[1761930247423,0.52395327,3828.1,3827.2,0.1847]
[1761930247701,0.52395327,3828.1,3827.7,2.61253091]
[1761930248024,0.52395327,3828.1,3827.2,0.1847]
[1761930248538,0.52395327,3828.1,3827.7,2.61253048]
[1761930248712,0.52395327,3828.1,3827.3,2.61280798]
[1761930248915,0.52395327,3828.1,3827.9,0.001]
[1761930249538,0.03265327,3828.1,3828.0,3.09343019]
[1761930249837,0.40973416,3828.4,3828.0,3.09343019]
[1761930249838,0.40973416,3828.4,3828.3,2.61212548]
[1761930250048,0.40973416,3828.4,3828.3,6.13402548]
[1761930250338,0.40973416,3828.4,3828.3,3.0408]
[1761930250639,0.40973416,3828.4,3828.3,5.65292548]
[1761930250841,0.1936,3829.0,3828.3,3.82598]
[1761930251141,0.002,3829.1,3829.0,3.09274794]
[1761930251306,0.002,3829.1,3829.0,3.11086522]
[1761930251509,0.002,3829.1,3829.0,3.55179161]
[1761930251939,0.002,3829.1,3829.0,4.04809161]
[1761930252322,0.002,3829.1,3829.0,4.02997433]
[1761930252511,0.002,3829.1,3829.0,3.53367433]
[1761930252711,0.002,3829.1,3829.0,4.04809161]
[1761930254038,1e-08,3829.5,3829.4,3.23097515]
[1761930254218,0.41961831,3829.7,3829.6,2.61123877]
[1761930254219,1e-08,3829.7,3829.6,2.61123877]
[1761930254421,1e-08,3829.7,3829.6,3.11044582]
[1761930254622,1e-08,3829.7,3829.6,3.58863877]
[1761930254823,1e-08,3829.7,3829.6,4.3718227]
[1761930255022,1e-08,3829.7,3829.4,0.1385]
[1761930255233,1e-08,3829.7,3829.6,3.09233877]
[1761930255437,1e-08,3829.7,3829.6,0.4811]
[1761930255632,2.842385,3829.6,3827.1,0.01]
[1761930255832,12.483576,3829.4,3827.4,0.4963]
[1761930256119,0.4913,3829.5,3828.1,0.01812585]
[1761930256458,0.4913,3829.5,3827.1,0.01]
[1761930256459,2.527995,3829.3,3827.6,0.4963]
[1761930256665,0.4913,3829.3,3828.0,0.681]
[1761930256870,2.573827,3829.1,3828.0,0.1847]
[1761930257173,3.178215,3829.1,3828.0,0.1847]
[1761930257523,1e-08,3829.7,3828.1,0.5144277]
[1761930257744,6.515536,3829.6,3828.7,2.61184895]
[1761930257943,6.515536,3829.6,3828.0,0.1847]
[1761930257944,0.03264133,3829.5,3828.0,0.1847]
[1761930258130,8.248053,3829.4,3828.0,0.1847]
[1761930258331,16.304079,3829.2,3828.0,0.1847]
[1761930258555,10.923915,3829.0,3828.0,0.1847]
[1761930258725,9.558596,3828.8,3828.0,0.1847]
[1761930258920,9.531521,3828.8,3828.2,2.61216524]
[1761930259160,0.1962,3828.9,3827.9,0.001]
[1761930259356,0.1962,3828.9,3827.9,0.26235346]
[1761930259357,0.4902473,3828.8,3827.9,0.26235346]
[1761930259559,0.4576,3828.8,3828.0,0.01813064]
[1761930259744,0.1962,3828.9,3828.1,2.61220003]
[1761930259944,6.238475,3828.8,3828.2,2.61218031]
[1761930260155,5.259494,3828.8,3828.3,2.61207701]
[1761930260455,0.4576,3828.8,3828.3,2.61211203]
[1761930260659,4.592202,3828.3,3827.9,0.001]
[1761930260860,0.03265156,3828.3,3827.9,0.001]
[1761930261064,2.129812,3828.5,3827.9,0.001]
[1761930261238,0.4856,3828.0,3827.9,0.001]
[1761930261632,0.9387,3828.0,3827.9,0.001]
[1761930261941,7.39502534,3828.0,3827.9,0.001]
[1761930262136,7.39502534,3828.0,3827.1,0.01]
[1761930262137,30.0,3827.9,3827.1,0.01]
[1761930262331,0.4798,3827.2,3827.1,0.01]
[1761930262527,29.018023,3827.2,3827.1,0.01]
[1761930262968,23.5447,3827.2,3827.1,0.01]
[1761930263133,26.118374,3827.2,3827.1,0.01]
[1761930263470,22.78323,3827.2,3827.1,0.01]
[1761930263632,24.78289967,3827.2,3827.1,0.01]
[1761930263984,8.07530967,3827.2,3827.1,0.01]
[1761930264163,4.59487,3827.2,3827.1,0.01]
[1761930264366,4.141675,3827.2,3827.1,0.01]
[1761930264666,6.28015212,3827.2,3827.1,0.01]
[1761930264965,5.47051212,3827.2,3827.1,0.01]
[1761930265139,9.51760612,3827.2,3827.1,0.01]
[1761930265339,9.18469312,3827.2,3827.1,0.01]
[1761930265741,9.18469312,3827.2,3827.1,0.011]
[1761930265742,10.10316243,3827.2,3827.1,0.011]
[1761930266141,22.62844643,3827.2,3827.1,0.011]
[1761930266933,17.22509743,3827.2,3827.1,0.011]
[1761930267155,24.05172043,3827.2,3827.1,0.011]
[1761930267935,24.46292477,3827.2,3827.1,0.011]
[1761930268136,32.67697277,3827.2,3827.1,0.011]
[1761930268484,30.0,3826.8,3826.7,0.001]
[1761930268665,39.47904122,3826.8,3826.7,0.001]
[1761930268842,40.42224122,3826.8,3826.7,0.001]
[1761930269042,43.03539058,3826.8,3826.7,0.001]
[1761930269237,40.42224122,3826.8,3826.7,0.001]
[1761930269442,43.14018176,3826.8,3826.7,0.001]
[1761930269658,43.55031856,3826.8,3826.7,0.001]
[1761930270390,40.9371692,3826.8,3826.7,0.001]
[1761930270846,15.06954634,3826.8,3826.7,0.001]
[1761930271134,7.932613,3826.8,3826.7,0.001]
[1761930271305,8.615217,3826.8,3826.7,0.001]
[1761930272122,30.0,3826.7,3826.3,0.001]
[1761930272306,30.0,3826.4,3826.3,0.001]
[1761930272508,30.4856,3826.4,3826.3,0.001]
[1761930272722,33.55471154,3826.4,3826.3,0.001]
[1761930274155,16.25011354,3826.4,3826.3,0.001]
[1761930274309,11.121301,3826.4,3826.3,0.001]
[1761930274514,2.880811,3826.4,3826.3,0.001]
[1761930274813,3.338411,3826.4,3826.3,0.001]
[1761930275014,3.29080391,3826.4,3826.3,0.001]
[1761930275253,0.89559291,3826.4,3826.3,0.001]
[1761930275444,4.65722469,3826.4,3826.3,0.001]
[1761930275647,3.53559569,3826.4,3826.3,0.001]
[1761930275848,2.96543669,3826.4,3826.3,0.001]
[1761930276051,0.44266069,3826.4,3826.3,0.001]
[1761930276420,2.59645091,3826.4,3826.3,0.001]
[1761930276739,0.40999291,3826.4,3826.3,0.001]
[1761930276920,0.40999291,3826.4,3826.3,0.4528]
[1761930277121,0.40999291,3826.4,3826.3,3.06629083]
[1761930277350,0.40999291,3826.4,3826.3,3.48550866]
[1761930277527,0.40999291,3826.4,3826.3,3.95450866]
[1761930278122,0.40999291,3826.4,3826.3,3.97267201]
[1761930278317,0.40999291,3826.4,3826.3,4.10307201]
[1761930278550,0.1304,3827.1,3827.0,2.6130128]
[1761930278742,0.002,3827.9,3827.3,2.61280798]
[1761930278743,0.40984809,3827.4,3827.3,2.61280798]
[1761930278940,0.40984809,3827.4,3827.3,3.53360798]
[1761930279458,0.40984809,3827.4,3827.3,0.9208]
[1761930279830,0.40984809,3827.4,3827.3,3.53360798]
[1761930281557,0.002,3827.9,3827.8,2.61246669]
[1761930281761,0.002,3827.9,3827.8,3.60490629]
[1761930281976,0.002,3827.9,3827.8,4.07390629]
[1761930282471,0.002,3827.9,3827.8,4.05576855]
[1761930283689,0.002,3827.9,3827.8,0.4518]
[1761930283839,0.002,3827.9,3827.8,3.06426669]
[1761930284252,0.002,3827.9,3827.8,0.4518]
[1761930284454,0.002,3827.9,3827.8,3.06426669]
[1761930284748,0.002,3827.9,3827.8,0.4518]
[1761930285075,0.002,3827.9,3827.8,3.06426669]
[1761930285271,0.002,3827.9,3827.8,0.4518]
[1761930285449,0.002,3827.9,3827.4,0.469]
[1761930285678,0.002,3827.9,3827.6,2.61259087]
[1761930285880,0.002,3827.9,3827.1,0.1844]
[1761930285881,0.1846,3827.9,3827.1,0.1844]
[1761930286045,0.002,3827.9,3827.1,0.1844]
[1761930286243,0.002,3827.9,3827.6,2.61255073]
[1761930286887,0.002,3827.9,3827.8,2.61246669]
[1761930287853,0.002,3827.9,3826.7,0.001]
[1761930288042,0.1846,3827.9,3827.4,2.61269124]
[1761930288237,0.1846,3827.9,3826.8,3.08210508]
[1761930288442,0.1846,3827.9,3827.0,2.61300603]
[1761930288639,5.005354,3827.7,3827.1,0.001]
[1761930288838,0.4856,3827.2,3827.1,0.001]
[1761930289050,3.521233,3827.2,3827.1,0.001]
[1761930289255,11.793763,3827.2,3827.1,0.001]
[1761930289583,0.1846,3827.9,3827.1,3.28302984]
[1761930289584,0.6624,3827.9,3827.1,3.28302984]
[1761930289784,2.989862,3827.7,3827.1,0.6701]
[1761930289986,0.03265753,3827.6,3827.1,3.28304347]
[1761930290171,0.03265583,3827.8,3827.2,2.61284685]
[1761930290378,0.03265583,3827.8,3827.1,0.1824]
[1761930290574,0.03265583,3827.8,3827.1,2.79531906]
[1761930290780,2.535537,3827.7,3827.2,2.61285935]
[1761930290953,0.03265753,3827.6,3827.2,2.61285935]
[1761930291278,2.26038,3827.7,3827.1,0.1824]
[1761930291475,2.26038,3827.7,3827.1,2.79534223]
[1761930291476,0.1304,3827.2,3827.1,2.79534223]
[1761930291677,0.1304,3827.2,3827.1,2.61394452]
[1761930291885,0.1304,3827.2,3827.1,0.001]
[1761930292458,0.1304,3827.2,3827.1,3.58814452]
[1761930292754,0.1304,3827.2,3827.1,3.10164452]
[1761930292957,0.1304,3827.2,3827.1,0.001]
[1761930293158,0.6284,3827.2,3827.1,0.001]
[1761930293458,3.157356,3827.2,3827.1,0.001]
[1761930293693,0.6284,3827.2,3827.1,0.001]
[1761930293996,2.809625,3827.2,3827.1,0.001]
[1761930294160,6.624908,3827.2,3827.1,0.001]
[1761930294361,5.977565,3827.2,3827.1,0.001]
[1761930294905,5.977565,3827.2,3827.1,3.0418]
[1761930294906,6.1109765,3827.2,3827.1,3.0418]
[1761930295058,8.0035715,3827.2,3827.1,3.0418]
[1761930295252,6.7658635,3827.2,3827.1,3.0418]
[1761930295456,3.4082885,3827.2,3827.1,3.0418]
[1761930295701,0.40986771,3827.6,3827.1,5.65474452]
[1761930295899,0.1304,3827.2,3827.1,6.32384452]
[1761930296608,0.1304,3827.2,3827.1,3.0418]
[1761930297190,0.1304,3827.2,3827.1,5.65474452]
[1761930297361,0.1304,3827.2,3827.1,3.0418]
[1761930300167,0.1304,3827.2,3827.1,5.65474452]
[1761930300432,0.002,3827.2,3827.1,3.0418]
[1761930300902,2.643467,3827.2,3827.1,3.0418]
[1761930301102,2.290671,3827.2,3827.1,3.0418]
[1761930301306,2.198104,3827.2,3827.1,6.88933758]
[1761930301478,0.40986771,3827.6,3827.5,2.61267145]
[1761930301479,0.41186771,3827.6,3827.5,2.61267145]
[1761930301667,0.41186771,3827.6,3827.5,7.48501431]
[1761930302005,0.41186771,3827.6,3827.5,7.46687145]
[1761930302304,0.002,3827.6,3827.5,9.19610361]
[1761930302682,1e-08,3827.9,3827.8,3.10016669]
[1761930302882,1e-08,3827.9,3827.8,3.11830443]
[1761930303090,1e-08,3827.9,3827.8,3.60480443]
[1761930304122,1e-08,3827.9,3827.8,3.58666669]
[1761930304331,1e-08,3827.9,3827.8,5.30006056]
[1761930305626,1e-08,3828.7,3828.6,3.2810208]
[1761930305989,1e-08,3828.7,3828.6,3.7675208]
[1761930306632,1e-08,3828.7,3828.6,3.7856449]
[1761930306837,1e-08,3828.7,3828.6,4.42541012]
[1761930307821,1e-08,3828.7,3828.6,4.40728602]
[1761930308260,1e-08,3828.7,3828.6,3.92078602]
[1761930308447,1e-08,3828.7,3828.6,3.2810208]
[1761930308629,1e-08,3828.7,3828.6,3.7675208]
[1761930309238,1e-08,3828.7,3828.6,3.7856449]
[1761930309464,1e-08,3828.7,3828.6,3.2810208]
[1761930309760,1e-08,3828.7,3828.6,3.7856449]
[1761930309932,1e-08,3828.7,3828.6,4.42541012]
[1761930310135,1e-08,3828.7,3828.6,4.40728602]
[1761930310444,1e-08,3828.7,3828.6,4.55581012]
[1761930310838,1e-08,3828.7,3828.6,4.53768602]
[1761930312559,1e-08,3828.7,3828.6,4.55581012]
[1761930312733,1e-08,3828.7,3828.6,8.43581012]
[1761930312943,1e-08,3828.7,3828.6,8.41768602]
[1761930313264,1e-08,3829.7,3829.6,2.61123877]
[1761930313445,1e-08,3829.7,3829.6,3.89723877]
[1761930313639,1e-08,3829.7,3829.6,3.91534582]
[1761930313962,1e-08,3829.7,3829.6,3.89723877]
[1761930314359,1e-08,3829.7,3829.6,3.78494582]
[1761930314532,1e-08,3829.7,3829.6,9.07614731]
[1761930315778,0.1986,3830.9,3829.9,3.87799999]
[1761930316003,8.471455,3830.6,3830.0,3.87799999]
[1761930316156,0.6458,3830.1,3829.5,3.87799999]
[1761930316341,0.6458,3830.1,3830.0,2.61096605]
[1761930316547,0.4778,3830.5,3830.0,2.61096605]
[1761930316777,0.4778,3830.5,3830.0,2.61091035]
[1761930316985,0.4778,3830.5,3829.9,0.01809729]
[1761930317159,0.4778,3830.5,3830.1,2.61088162]
[1761930317478,0.4778,3830.5,3830.0,2.61095414]
[1761930317780,0.4778,3830.5,3829.9,0.01809729]
[1761930317781,3.46478,3830.4,3829.9,0.01809729]
[1761930318079,0.4778,3830.5,3830.1,2.61089364]
[1761930318284,0.4778,3830.5,3829.9,2.61102747]
[1761930318444,0.4778,3830.5,3830.2,2.61082828]
[1761930318641,0.1986,3830.9,3830.4,2.61064763]
[1761930318843,11.693621,3829.6,3827.7,0.1814]
[1761930319041,9.576814,3829.4,3827.7,0.1814]
[1761930319302,0.6546,3828.2,3826.9,0.4865]
[1761930319441,0.6546,3828.2,3827.4,2.61273468]
[1761930319644,0.6546,3828.2,3827.5,2.61267113]
[1761930319645,1.1332,3828.2,3827.5,2.61267113]
[1761930319904,4.932538,3828.2,3826.6,2.61427796]
[1761930320123,4.932538,3828.2,3827.1,0.011]
[1761930320380,6.216116,3828.2,3827.3,3.45548838]
[1761930320557,6.8377276,3828.2,3827.3,3.45547039]
[1761930320763,6.5502676,3828.2,3827.3,0.842696]
[1761930321142,25.6900866,3828.2,3827.3,0.842696]
[1761930321347,16.9118916,3828.2,3827.3,0.842696]
[1761930321887,14.6337756,3828.2,3827.3,0.842696]
[1761930322249,20.2775556,3828.2,3827.3,0.842696]
[1761930323047,22.88974932,3828.2,3827.3,0.842696]
[1761930323247,20.568276,3827.4,3827.3,0.842696]
[1761930323689,21.049076,3827.4,3827.3,0.842696]
[1761930324045,21.45896111,3827.4,3827.3,0.842696]
[1761930324280,30.89548511,3827.4,3827.3,0.842696]
[1761930324484,32.85729916,3827.4,3827.3,0.842696]
[1761930325583,32.85729916,3827.4,3826.7,0.001]
[1761930325584,30.0,3827.1,3826.7,0.001]
[1761930325880,3.06940032,3827.2,3826.7,0.001]
[1761930325881,36.81221761,3826.8,3826.7,0.001]
[1761930326386,36.81221761,3826.8,3824.9,2.74484214]
[1761930326387,37.28261761,3826.8,3824.9,0.1304]
[1761930326572,36.59281761,3825.6,3822.9,0.1997]
[1761930326775,37.04931761,3825.6,3823.3,0.1997]
[1761930326979,37.04931761,3825.6,3823.3,2.81522863]
[1761930326980,30.0,3825.5,3823.3,2.81522863]
[1761930327285,30.4953,3825.5,3824.1,2.62598031]
[1761930327448,22.538612,3825.5,3824.2,2.61492074]
[1761930327792,16.254327,3825.5,3824.1,0.011]
[1761930327964,16.254327,3825.5,3824.1,0.2107]
[1761930327965,9.323872,3825.5,3824.1,0.2107]
[1761930328150,7.507998,3825.5,3824.8,2.61450656]
[1761930328348,2.080646,3825.5,3825.0,2.6153664]
[1761930328654,2.551046,3825.5,3825.0,0.001]
[1761930329082,2.8061506,3825.5,3825.0,0.001]
[1761930329265,29.7386646,3825.5,3825.0,0.001]
[1761930330291,0.7504046,3825.5,3825.0,0.001]
[1761930330586,30.78308006,3825.5,3825.0,0.001]
[1761930330893,30.7504046,3825.5,3825.0,0.001]
[1761930331187,36.59281761,3824.8,3824.7,0.001]
[1761930331356,37.23491761,3824.8,3824.7,0.001]
[1761930331675,37.70531761,3824.8,3824.7,0.001]
[1761930332753,20.523058,3824.8,3824.7,0.001]
[1761930333151,4.195475,3824.8,3824.7,0.001]
[1761930333353,8.58235544,3824.8,3824.7,0.001]
[1761930333554,7.775785,3824.8,3824.7,0.001]
[1761930334006,0.01,3826.7,3824.7,0.001]
[1761930334007,6.942937,3825.8,3824.7,0.4905]
[1761930334212,0.01,3826.7,3825.6,2.61396905]
[1761930334213,2.894819,3825.7,3825.6,2.61396905]
[1761930334488,0.41002401,3825.7,3825.0,2.61437908]
[1761930334690,0.41002401,3825.7,3825.6,2.61396905]
[1761930334890,8.994582,3826.4,3825.8,2.61380822]
[1761930335196,4.713638,3825.9,3825.7,2.61383432]
[1761930335493,2.011032,3825.9,3825.5,0.001]
[1761930335788,2.011032,3825.9,3825.5,2.61501112]
[1761930335988,0.41000515,3826.1,3826.0,2.61369576]
[1761930336301,0.41000515,3826.1,3825.9,2.61370146]
[1761930336453,0.1304,3825.7,3825.5,0.001]
[1761930336653,0.1304,3825.7,3825.6,2.61396905]
[1761930336890,0.5869,3825.7,3825.5,0.001]
[1761930337091,2.930325,3825.6,3825.5,0.001]
[1761930337305,3.41949961,3825.6,3825.5,0.001]
[1761930337457,3.857225,3825.6,3825.5,0.001]
[1761930337656,3.88989961,3825.6,3825.5,0.001]
[1761930338072,10.29427761,3825.6,3825.5,0.001]
[1761930338276,10.261603,3825.6,3825.5,0.001]
[1761930338694,8.24463,3825.6,3825.5,0.001]
[1761930338996,8.694182,3825.6,3825.5,0.001]
[1761930339380,6.227974,3825.6,3825.5,0.001]
[1761930339693,0.1304,3825.7,3825.5,0.001]
[1761930340006,0.54040515,3826.1,3826.0,2.61369576]
[1761930340162,0.01,3827.7,3826.6,2.61328594]
[1761930340364,0.194,3827.3,3826.6,2.61328594]
[1761930340661,0.4198944,3826.7,3826.6,2.61328594]
[1761930342272,0.4198944,3826.7,3826.6,4.23364219]
[1761930342686,0.01,3826.7,3826.6,4.23364219]
[1761930343182,0.40984634,3827.6,3827.5,2.61267145]
[1761930343387,0.40984634,3827.6,3827.5,3.10217145]
[1761930343759,0.1404,3827.7,3827.6,2.61260319]
[1761930344061,0.1404,3827.7,3827.6,2.63074435]
[1761930344262,0.01,3827.7,3827.6,4.16950593]
[1761930344971,0.01,3827.7,3827.4,0.1997]
[1761930345163,0.01,3827.7,3827.5,0.01814286]
[1761930345383,0.01,3827.7,3826.9,0.456]
[1761930345583,3.685896,3827.6,3827.0,2.61300896]
[1761930345907,0.3889896,3827.6,3827.1,2.61288824]
[1761930346063,0.01,3827.7,3827.1,2.61294452]
[1761930346264,2.325544,3827.6,3826.4,0.456]
[1761930346602,2.06822,3827.6,3827.4,2.61268203]
[1761930346766,2.07432,3827.6,3827.0,2.61295279]
[1761930347105,2.07432,3827.6,3826.7,0.76291755]
[1761930347272,2.07432,3827.6,3827.1,2.61289482]
[1761930347480,0.01,3827.7,3827.5,2.61261225]
[1761930347864,0.01,3827.7,3827.6,3.12024496]
[1761930348293,0.01,3827.7,3827.4,0.1997]
[1761930348503,0.01,3827.7,3827.3,2.61279679]
[1761930348674,0.01,3827.7,3827.4,2.61273833]
[1761930348998,0.01,3827.7,3827.5,2.61266041]
[1761930349206,0.01,3827.7,3827.2,2.61287625]
[1761930349430,0.01,3827.7,3827.3,2.63094723]
[1761930349633,0.01,3827.7,3827.5,2.61261499]
[1761930349794,0.01,3827.7,3827.6,2.61260319]
[1761930350718,0.01,3827.7,3827.2,2.61287625]
[1761930350893,0.01,3827.7,3827.1,0.1997]
[1761930351607,0.01,3827.7,3827.4,2.61273587]
[1761930352028,0.01,3827.7,3827.3,2.61279571]
[1761930352336,0.01,3827.7,3827.4,2.61272729]
[1761930352493,0.01,3827.7,3827.2,3.87799999]
[1761930352694,0.01,3827.7,3827.5,2.612671]